[Event "*** Titled Tuesday Blitz"]
[Site "Chess.com"]
[Date "2020.05.26"]
[Round "2"]
[White "Ariadna_Atreides"]
[Black "InitiatingASC"]
[Result "0-1"]
[WhiteElo "2065"]
[BlackElo "2383"]
[TimeControl "180+1"]
[EndTime "10:17:06 PDT"]
[Termination "InitiatingASC won on time"]

1. d4 {[%clk 0:03:00.9]} 1... Nf6 {[%clk 0:02:59.1]} 2. Nf3 {[%clk 0:03:01]}
2... e6 {[%clk 0:02:59]} 3. e3 {[%clk 0:03:01]} 3... c5 {[%clk 0:02:59.3]} 4.
Bd3 {[%clk 0:03:00.6]} 4... cxd4 {[%clk 0:02:59.6]} 5. exd4 {[%clk 0:02:59.1]}
5... Be7 {[%clk 0:02:59.9]} 6. O-O {[%clk 0:02:58.6]} 6... b6 {[%clk 0:02:59.8]}
7. b3 {[%clk 0:02:49.3]} 7... Bb7 {[%clk 0:02:59.6]} 8. Bb2 {[%clk 0:02:47.2]}
8... O-O {[%clk 0:02:59.6]} 9. Nbd2 {[%clk 0:02:45.6]} 9... d6 {[%clk
0:02:59.9]} 10. Qe2 {[%clk 0:02:42.2]} 10... Nbd7 {[%clk 0:02:59]} 11. Rfe1
{[%clk 0:02:25.1]} 11... Qc7 {[%clk 0:02:56.2]} 12. c4 {[%clk 0:02:19.4]} 12...
Rac8 {[%clk 0:02:54.2]} 13. Rac1 {[%clk 0:02:17.2]} 13... Qb8 {[%clk 0:02:54.3]}
14. d5 {[%clk 0:02:07.1]} 14... e5 {[%clk 0:02:49.3]} 15. Bb1 {[%clk 0:01:24.9]}
15... Rfe8 {[%clk 0:02:45.1]} 16. Ne4 {[%clk 0:01:00.2]} 16... Nxe4 {[%clk
0:02:33.6]} 17. Qxe4 {[%clk 0:00:58.2]} 17... Nf8 {[%clk 0:02:28.1]} 18. Rcd1
{[%clk 0:00:52.2]} 18... g6 {[%clk 0:02:04.5]} 19. Bc1 {[%clk 0:00:51.4]} 19...
f5 {[%clk 0:02:00.6]} 20. Qe2 {[%clk 0:00:44.1]} 20... Bf6 {[%clk 0:02:00.5]}
21. Ng5 {[%clk 0:00:33.9]} 21... h6 {[%clk 0:01:47.2]} 22. Nh3 {[%clk 0:00:25]}
22... Bg7 {[%clk 0:01:44.9]} 23. f4 {[%clk 0:00:23.8]} 23... Nd7 {[%clk
0:01:36.9]} 24. fxe5 {[%clk 0:00:16.4]} 24... Rxe5 {[%clk 0:01:24.4]} 25. Qc2
{[%clk 0:00:15.6]} 25... Rce8 {[%clk 0:01:23]} 26. Rxe5 {[%clk 0:00:15.2]} 26...
dxe5 {[%clk 0:01:20.4]} 27. d6 {[%clk 0:00:13]} 27... Re6 {[%clk 0:01:11.1]} 28.
b4 {[%clk 0:00:12.5]} 28... Rxd6 {[%clk 0:01:09.2]} 29. c5 {[%clk 0:00:09.7]}
29... bxc5 {[%clk 0:01:00]} 30. bxc5 {[%clk 0:00:08.2]} 30... Rxd1+ {[%clk
0:01:00.6]} 31. Qxd1 {[%clk 0:00:07.8]} 31... Nxc5 {[%clk 0:00:58.8]} 32. Be3
{[%clk 0:00:07.7]} 32... Ne4 {[%clk 0:00:55.1]} 33. a3 {[%clk 0:00:06]} 33...
Kh7 {[%clk 0:00:53.1]} 34. Qb3 {[%clk 0:00:05.2]} 34... Qc7 {[%clk 0:00:50.5]}
35. Nf2 {[%clk 0:00:02]} 35... Nxf2 {[%clk 0:00:49.5]} 0-1

[Event "*** Titled Tuesday Blitz"]
[Site "Chess.com"]
[Date "2020.05.26"]
[Round "2"]
[White "atalz0"]
[Black "Franciscoconstantino"]
[Result "1-0"]
[WhiteElo "2318"]
[BlackElo "1607"]
[TimeControl "180+1"]
[EndTime "10:17:10 PDT"]
[Termination "atalz0 won on time"]

1. d4 {[%clk 0:03:00.9]} 1... Nf6 {[%clk 0:02:59.4]} 2. c4 {[%clk 0:02:59.2]}
2... g6 {[%clk 0:02:59.5]} 3. f3 {[%clk 0:02:59.1]} 3... Bg7 {[%clk 0:02:59.2]}
4. e4 {[%clk 0:02:59.3]} 4... d6 {[%clk 0:02:59.8]} 5. Nc3 {[%clk 0:02:59.3]}
5... O-O {[%clk 0:02:59.7]} 6. Be3 {[%clk 0:02:59.8]} 6... e5 {[%clk 0:02:58.1]}
7. d5 {[%clk 0:02:59.6]} 7... Nbd7 {[%clk 0:02:57.9]} 8. Qd2 {[%clk 0:02:57.8]}
8... Re8 {[%clk 0:02:57]} 9. O-O-O {[%clk 0:02:57.1]} 9... a5 {[%clk 0:02:50]}
10. Nge2 {[%clk 0:02:50.7]} 10... Nc5 {[%clk 0:02:46.9]} 11. Kb1 {[%clk
0:02:50.1]} 11... Nfd7 {[%clk 0:02:32.8]} 12. g4 {[%clk 0:02:49.5]} 12... Rb8
{[%clk 0:01:51.2]} 13. Ng3 {[%clk 0:02:47.4]} 13... Nb6 {[%clk 0:00:56.7]} 14.
h4 {[%clk 0:02:28.9]} 14... Bd7 {[%clk 0:00:44]} 15. h5 {[%clk 0:02:26.8]} 15...
Nba4 {[%clk 0:00:34.9]} 16. Nxa4 {[%clk 0:02:22.6]} 16... Nxa4 {[%clk
0:00:25.9]} 17. hxg6 {[%clk 0:02:13.4]} 17... hxg6 {[%clk 0:00:25]} 18. Qh2
{[%clk 0:02:07.3]} 18... Qf6 {[%clk 0:00:20.3]} 19. Be2 {[%clk 0:02:03.8]} 19...
b5 {[%clk 0:00:18.6]} 20. Qh7+ {[%clk 0:01:54.8]} 20... Kf8 {[%clk 0:00:18.3]}
21. Bh6 {[%clk 0:01:41.5]} 21... bxc4 {[%clk 0:00:13.8]} 22. Qh8+ {[%clk
0:01:30.3]} 22... Ke7 {[%clk 0:00:12]} 23. Qxg7 {[%clk 0:01:31.2]} 23... Qxg7
{[%clk 0:00:11.8]} 24. Bxg7 {[%clk 0:01:30.8]} 24... Rxb2+ {[%clk 0:00:11.3]}
25. Ka1 {[%clk 0:01:29.9]} 25... c3 {[%clk 0:00:09.2]} 26. Bd3 {[%clk
0:01:19.4]} 26... Nc5 {[%clk 0:00:08.1]} 27. g5 {[%clk 0:01:09.5]} 27... Ba4
{[%clk 0:00:07]} 28. Bc4 {[%clk 0:00:50.9]} 28... Bxd1 {[%clk 0:00:02.9]} 29.
Rxd1 {[%clk 0:00:51.8]} 29... Rd2 {[%clk 0:00:02.5]} 30. Rc1 {[%clk 0:00:49.8]}
30... c2 {[%clk 0:00:01.7]} 31. Bf6+ {[%clk 0:00:44.5]} 1-0

[Event "*** Titled Tuesday Blitz"]
[Site "Chess.com"]
[Date "2020.05.26"]
[Round "2"]
[White "larisakalinina"]
[Black "Everyfishknows"]
[Result "0-1"]
[WhiteElo "1959"]
[BlackElo "2343"]
[TimeControl "180+1"]
[EndTime "10:17:11 PDT"]
[Termination "Everyfishknows won by resignation"]

1. e4 {[%clk 0:03:00.9]} 1... e5 {[%clk 0:02:59.9]} 2. Nf3 {[%clk 0:02:59.4]}
2... Nc6 {[%clk 0:02:59.7]} 3. d4 {[%clk 0:02:58.8]} 3... exd4 {[%clk
0:02:59.9]} 4. Nxd4 {[%clk 0:02:58.9]} 4... Bb4+ {[%clk 0:02:59.4]} 5. c3 {[%clk
0:02:57.2]} 5... Bc5 {[%clk 0:02:59.7]} 6. Be3 {[%clk 0:02:56.7]} 6... Bb6
{[%clk 0:03:00.3]} 7. g3 {[%clk 0:02:54]} 7... Nf6 {[%clk 0:03:00.3]} 8. Bg2
{[%clk 0:02:53]} 8... O-O {[%clk 0:03:00.9]} 9. O-O {[%clk 0:02:51.8]} 9... Re8
{[%clk 0:03:01.5]} 10. Nd2 {[%clk 0:02:47.2]} 10... d5 {[%clk 0:02:56.6]} 11.
Nxc6 {[%clk 0:02:37.5]} 11... bxc6 {[%clk 0:02:57.5]} 12. Bxb6 {[%clk
0:02:36.2]} 12... axb6 {[%clk 0:02:55.8]} 13. exd5 {[%clk 0:02:36]} 13... cxd5
{[%clk 0:02:52.3]} 14. Nf3 {[%clk 0:02:20.3]} 14... Bb7 {[%clk 0:02:42.2]} 15.
Nd4 {[%clk 0:02:10.7]} 15... c5 {[%clk 0:02:41.1]} 16. Nf5 {[%clk 0:02:09.5]}
16... Qd7 {[%clk 0:02:33.2]} 17. Qc2 {[%clk 0:01:49.9]} 17... g6 {[%clk
0:02:25.8]} 18. Ne3 {[%clk 0:01:45]} 18... d4 {[%clk 0:02:21.2]} 19. cxd4 {[%clk
0:01:41.8]} 19... cxd4 {[%clk 0:02:22.1]} 20. Rfd1 {[%clk 0:01:29.2]} 20... Bxg2
{[%clk 0:02:18.6]} 21. Nxg2 {[%clk 0:01:29.1]} 21... Rac8 {[%clk 0:02:11.1]} 22.
Qd3 {[%clk 0:01:27.4]} 22... Red8 {[%clk 0:02:06.1]} 23. Nf4 {[%clk 0:01:21.2]}
23... Qc6 {[%clk 0:01:56]} 24. Rac1 {[%clk 0:01:12.3]} 24... Qxc1 {[%clk
0:01:51.1]} 25. Rxc1 {[%clk 0:01:12.6]} 25... Rxc1+ {[%clk 0:01:51.9]} 26. Kg2
{[%clk 0:01:12.4]} 26... Rcc8 {[%clk 0:01:50.1]} 27. Qf3 {[%clk 0:00:52.3]}
27... Kg7 {[%clk 0:01:40.2]} 28. Nd3 {[%clk 0:00:51.1]} 28... Nd7 {[%clk
0:01:32.7]} 29. g4 {[%clk 0:00:28.5]} 29... Nc5 {[%clk 0:01:30.5]} 30. Ne5
{[%clk 0:00:28.7]} 30... Rc7 {[%clk 0:01:29.6]} 31. Nd3 {[%clk 0:00:17.6]} 31...
Nxd3 {[%clk 0:01:25.9]} 32. Qxd3 {[%clk 0:00:17.9]} 32... b5 {[%clk 0:01:17.5]}
33. h4 {[%clk 0:00:17.2]} 33... h6 {[%clk 0:01:14.8]} 34. g5 {[%clk 0:00:16]}
34... hxg5 {[%clk 0:01:15]} 35. hxg5 {[%clk 0:00:14.9]} 35... Rc5 {[%clk
0:01:15.5]} 36. f4 {[%clk 0:00:13.2]} 36... Rf5 {[%clk 0:01:15.3]} 37. Kg3
{[%clk 0:00:12.8]} 37... Rc5 {[%clk 0:01:09]} 38. Kg4 {[%clk 0:00:10.8]} 38...
Rc7 {[%clk 0:01:02.7]} 39. Kf3 {[%clk 0:00:10.2]} 39... Re7 {[%clk 0:01:02.5]}
40. Kg4 {[%clk 0:00:10.5]} 40... Re3 {[%clk 0:01:01.9]} 41. Qxb5 {[%clk
0:00:10.4]} 41... d3 {[%clk 0:01:01]} 42. Qb4 {[%clk 0:00:09.6]} 42... d2 {[%clk
0:00:59.2]} 43. Qc5 {[%clk 0:00:06.6]} 43... d1=Q+ {[%clk 0:00:59.1]} 0-1

[Event "*** Titled Tuesday Blitz"]
[Site "Chess.com"]
[Date "2020.05.26"]
[Round "2"]
[White "lelya96"]
[Black "White_Ghost"]
[Result "0-1"]
[WhiteElo "2271"]
[BlackElo "2486"]
[TimeControl "180+1"]
[EndTime "10:17:15 PDT"]
[Termination "White_Ghost won by resignation"]

1. e4 {[%clk 0:03:00.9]} 1... e5 {[%clk 0:02:59.9]} 2. Nf3 {[%clk 0:03:00.3]}
2... Nc6 {[%clk 0:03:00.3]} 3. Bb5 {[%clk 0:03:00.2]} 3... a6 {[%clk 0:03:00.4]}
4. Ba4 {[%clk 0:03:00]} 4... b5 {[%clk 0:03:01.1]} 5. Bb3 {[%clk 0:03:00.1]}
5... Na5 {[%clk 0:03:02]} 6. c3 {[%clk 0:02:57.4]} 6... Nxb3 {[%clk 0:03:01]} 7.
axb3 {[%clk 0:02:55.7]} 7... d6 {[%clk 0:03:00.9]} 8. O-O {[%clk 0:02:55.6]}
8... Nf6 {[%clk 0:03:01.3]} 9. d4 {[%clk 0:02:54.8]} 9... Nxe4 {[%clk
0:03:00.8]} 10. dxe5 {[%clk 0:02:53.4]} 10... Bb7 {[%clk 0:02:58.9]} 11. Bf4
{[%clk 0:02:47.1]} 11... d5 {[%clk 0:02:57.4]} 12. Nbd2 {[%clk 0:02:45]} 12...
Be7 {[%clk 0:02:54.1]} 13. Nd4 {[%clk 0:02:41.5]} 13... O-O {[%clk 0:02:51.1]}
14. Re1 {[%clk 0:02:31.4]} 14... Bg5 {[%clk 0:02:44.7]} 15. Nxe4 {[%clk
0:02:03.3]} 15... dxe4 {[%clk 0:02:42.3]} 16. Qd2 {[%clk 0:01:48.8]} 16... h6
{[%clk 0:02:27.3]} 17. Bxg5 {[%clk 0:01:35]} 17... Qxg5 {[%clk 0:02:26.8]} 18.
Qxg5 {[%clk 0:01:14.1]} 18... hxg5 {[%clk 0:02:27.7]} 19. f4 {[%clk 0:01:10.3]}
19... gxf4 {[%clk 0:02:25.6]} 20. Rf1 {[%clk 0:01:01.8]} 20... Rfe8 {[%clk
0:02:25.5]} 21. Rxf4 {[%clk 0:01:00.4]} 21... Rxe5 {[%clk 0:02:25.3]} 22. Raf1
{[%clk 0:01:01.3]} 22... f6 {[%clk 0:02:24.7]} 23. Rg4 {[%clk 0:00:56.7]} 23...
e3 {[%clk 0:02:09.4]} 24. Ne2 {[%clk 0:00:55.8]} 24... Rd8 {[%clk 0:02:07.7]}
25. Re1 {[%clk 0:00:34.8]} 25... Rd2 {[%clk 0:02:06.9]} 26. b4 {[%clk
0:00:29.6]} 26... Rxb2 {[%clk 0:02:05.7]} 27. Kf1 {[%clk 0:00:28.7]} 27... Rf5+
{[%clk 0:02:05.5]} 28. Kg1 {[%clk 0:00:28.1]} 28... Rf2 {[%clk 0:02:04.6]} 29.
Nd4 {[%clk 0:00:27.9]} 29... Rxg2+ {[%clk 0:02:04.5]} 30. Rxg2 {[%clk
0:00:27.5]} 30... Rxg2+ {[%clk 0:02:05.4]} 31. Kf1 {[%clk 0:00:27.9]} 31... e2+
{[%clk 0:01:57.7]} 32. Rxe2 {[%clk 0:00:27.9]} 32... Rxe2 {[%clk 0:01:57.5]} 33.
Kxe2 {[%clk 0:00:28.3]} 33... Kf7 {[%clk 0:01:55]} 34. Ke3 {[%clk 0:00:28.1]}
34... g6 {[%clk 0:01:52.2]} 35. Nb3 {[%clk 0:00:28]} 35... Ke7 {[%clk
0:01:40.7]} 36. Nc5 {[%clk 0:00:28.6]} 36... Bc8 {[%clk 0:01:40.6]} 37. Kf4
{[%clk 0:00:29]} 37... g5+ {[%clk 0:01:39.5]} 38. Kf3 {[%clk 0:00:28.9]} 38...
Kd6 {[%clk 0:01:39]} 39. Ne4+ {[%clk 0:00:27.6]} 39... Ke5 {[%clk 0:01:39.2]}
40. Nc5 {[%clk 0:00:27.8]} 40... f5 {[%clk 0:01:36.2]} 41. h3 {[%clk 0:00:27.4]}
41... g4+ {[%clk 0:01:34.1]} 42. hxg4 {[%clk 0:00:27.8]} 42... fxg4+ {[%clk
0:01:35]} 43. Ke3 {[%clk 0:00:28.3]} 43... Kd5 {[%clk 0:01:31.3]} 44. Kf4 {[%clk
0:00:20.6]} 44... Kc4 {[%clk 0:01:30]} 45. Ne4 {[%clk 0:00:18.8]} 45... Bb7
{[%clk 0:01:21]} 46. Nc5 {[%clk 0:00:17.9]} 46... Bc8 {[%clk 0:01:16.9]} 47. Ne4
{[%clk 0:00:17.3]} 47... c5 {[%clk 0:01:11]} 48. Nxc5 {[%clk 0:00:15]} 48...
Kxc3 {[%clk 0:01:09]} 49. Ne4+ {[%clk 0:00:14.2]} 49... Kxb4 {[%clk 0:01:08.4]}
50. Nd6 {[%clk 0:00:15.1]} 50... Bd7 {[%clk 0:01:07.6]} 51. Ke5 {[%clk
0:00:15.6]} 51... g3 {[%clk 0:01:07]} 52. Ne4 {[%clk 0:00:15.9]} 52... g2 {[%clk
0:01:07.2]} 0-1

[Event "*** Titled Tuesday Blitz"]
[Site "Chess.com"]
[Date "2020.05.26"]
[Round "2"]
[White "manmanlai1"]
[Black "Gromes7"]
[Result "1-0"]
[WhiteElo "2364"]
[BlackElo "2012"]
[TimeControl "180+1"]
[EndTime "10:17:16 PDT"]
[Termination "manmanlai1 won by resignation"]

1. e4 {[%clk 0:03:00.9]} 1... c5 {[%clk 0:02:59.8]} 2. Nf3 {[%clk 0:03:00.7]}
2... d6 {[%clk 0:02:59.2]} 3. Bb5+ {[%clk 0:02:58.3]} 3... Nd7 {[%clk
0:02:57.8]} 4. d4 {[%clk 0:02:57.3]} 4... cxd4 {[%clk 0:02:57.8]} 5. Qxd4 {[%clk
0:02:58.2]} 5... a6 {[%clk 0:02:58.6]} 6. Bxd7+ {[%clk 0:02:58.7]} 6... Bxd7
{[%clk 0:02:59.3]} 7. O-O {[%clk 0:02:59.3]} 7... Nf6 {[%clk 0:02:58.4]} 8. Nbd2
{[%clk 0:02:56.5]} 8... Rc8 {[%clk 0:02:58.2]} 9. c4 {[%clk 0:02:48.7]} 9... g6
{[%clk 0:02:52.7]} 10. Qd3 {[%clk 0:02:48.2]} 10... Bg7 {[%clk 0:02:49.5]} 11.
a4 {[%clk 0:02:48.3]} 11... O-O {[%clk 0:02:34.8]} 12. a5 {[%clk 0:02:42.5]}
12... Qc7 {[%clk 0:02:02.7]} 13. Ra3 {[%clk 0:02:41.9]} 13... Bc6 {[%clk
0:01:42.7]} 14. b3 {[%clk 0:02:36.8]} 14... Nd7 {[%clk 0:01:41.8]} 15. Re1
{[%clk 0:02:24.4]} 15... Ne5 {[%clk 0:01:35.2]} 16. Nxe5 {[%clk 0:02:22.4]}
16... dxe5 {[%clk 0:01:35.4]} 17. Bb2 {[%clk 0:02:09.5]} 17... Rfd8 {[%clk
0:01:35.2]} 18. Qe2 {[%clk 0:02:09.5]} 18... Rd7 {[%clk 0:01:09.3]} 19. Raa1
{[%clk 0:02:07.8]} 19... Rcd8 {[%clk 0:01:06.9]} 20. Nf1 {[%clk 0:02:08]} 20...
Rd3 {[%clk 0:00:57.7]} 21. Qc2 {[%clk 0:02:07.4]} 21... b6 {[%clk 0:00:50.8]}
22. axb6 {[%clk 0:02:05.6]} 22... Qxb6 {[%clk 0:00:47]} 23. Bc3 {[%clk
0:02:01.8]} 23... Qb7 {[%clk 0:00:42.4]} 24. f3 {[%clk 0:01:55.2]} 24... f5
{[%clk 0:00:23.3]} 25. exf5 {[%clk 0:01:33.4]} 25... Rxc3 {[%clk 0:00:22.7]} 26.
Qxc3 {[%clk 0:01:30.9]} 26... gxf5 {[%clk 0:00:19.2]} 27. Rxe5 {[%clk
0:01:20.9]} 27... Bxe5 {[%clk 0:00:18.2]} 28. Qxe5 {[%clk 0:01:21.8]} 28... Qxb3
{[%clk 0:00:14.6]} 29. Qe6+ {[%clk 0:01:18]} 29... Kh8 {[%clk 0:00:12.3]} 30.
Qxc6 {[%clk 0:01:13.7]} 30... Qb2 {[%clk 0:00:08.2]} 31. Qa4 {[%clk 0:01:00.7]}
31... Qd4+ {[%clk 0:00:06.3]} 32. Kh1 {[%clk 0:01:00.5]} 32... Qf2 {[%clk
0:00:05.7]} 33. Qa2 {[%clk 0:00:53.6]} 33... Rg8 {[%clk 0:00:05.3]} 34. Qxf2
{[%clk 0:00:52]} 1-0

[Event "*** Titled Tuesday Blitz"]
[Site "Chess.com"]
[Date "2020.05.26"]
[Round "2"]
[White "wnstop"]
[Black "Tesla37"]
[Result "0-1"]
[WhiteElo "2583"]
[BlackElo "2959"]
[TimeControl "180+1"]
[EndTime "10:17:17 PDT"]
[Termination "Tesla37 won by resignation"]

1. e4 {[%clk 0:03:00.9]} 1... c5 {[%clk 0:02:59]} 2. Nf3 {[%clk 0:03:00.7]} 2...
e6 {[%clk 0:02:58.4]} 3. d4 {[%clk 0:03:00.5]} 3... cxd4 {[%clk 0:02:58.5]} 4.
Nxd4 {[%clk 0:03:01.4]} 4... Nc6 {[%clk 0:02:58.7]} 5. Nc3 {[%clk 0:03:00.3]}
5... a6 {[%clk 0:02:58.8]} 6. Nxc6 {[%clk 0:02:56.2]} 6... bxc6 {[%clk 0:02:58]}
7. Bd3 {[%clk 0:02:56.3]} 7... d5 {[%clk 0:02:58.1]} 8. O-O {[%clk 0:02:55.9]}
8... Nf6 {[%clk 0:02:58.5]} 9. Qf3 {[%clk 0:02:54.9]} 9... Be7 {[%clk
0:02:58.7]} 10. Bf4 {[%clk 0:02:54.5]} 10... O-O {[%clk 0:02:56.1]} 11. Rad1
{[%clk 0:02:52.8]} 11... Bb7 {[%clk 0:02:52.7]} 12. Qh3 {[%clk 0:02:41.5]} 12...
g6 {[%clk 0:02:47.6]} 13. Bh6 {[%clk 0:02:23.9]} 13... Re8 {[%clk 0:02:45.3]}
14. Kh1 {[%clk 0:02:21.9]} 14... c5 {[%clk 0:02:37.4]} 15. f4 {[%clk 0:02:15.2]}
15... d4 {[%clk 0:02:31.2]} 16. e5 {[%clk 0:02:03.5]} 16... Nd5 {[%clk
0:02:26.2]} 17. Nxd5 {[%clk 0:01:46.8]} 17... Qxd5 {[%clk 0:02:12.4]} 18. b3
{[%clk 0:01:44.2]} 18... Rad8 {[%clk 0:01:57.3]} 19. Rde1 {[%clk 0:01:16]} 19...
Qd7 {[%clk 0:01:55.7]} 20. f5 {[%clk 0:01:12.6]} 20... exf5 {[%clk 0:01:50.4]}
21. Bxf5 {[%clk 0:01:11.4]} 21... Qc6 {[%clk 0:01:21.8]} 22. Be4 {[%clk
0:01:04.1]} 22... Qc7 {[%clk 0:00:57.1]} 23. Bxb7 {[%clk 0:00:42.9]} 23... Qxb7
{[%clk 0:00:56.7]} 24. Rxf7 {[%clk 0:00:25.7]} 24... Kxf7 {[%clk 0:00:55.7]} 25.
Rf1+ {[%clk 0:00:25.8]} 25... Kg8 {[%clk 0:00:55.7]} 26. Qe6+ {[%clk 0:00:25.8]}
26... Kh8 {[%clk 0:00:55.8]} 27. Rf7 {[%clk 0:00:19.5]} 27... Qd5 {[%clk
0:00:37.6]} 28. Bg7+ {[%clk 0:00:04.7]} 28... Kg8 {[%clk 0:00:37.2]} 29. Rf8+
{[%clk 0:00:04.7]} 29... Kxg7 {[%clk 0:00:37.1]} 30. Rg8+ {[%clk 0:00:03.6]}
30... Rxg8 {[%clk 0:00:32.8]} 31. Qxe7+ {[%clk 0:00:03]} 31... Kh8 {[%clk
0:00:33.4]} 32. Qf6+ {[%clk 0:00:03.3]} 32... Rg7 {[%clk 0:00:33.9]} 0-1

[Event "*** Titled Tuesday Blitz"]
[Site "Chess.com"]
[Date "2020.05.26"]
[Round "2"]
[White "PawnEatingZombie"]
[Black "ShahMatKanal"]
[Result "0-1"]
[WhiteElo "2245"]
[BlackElo "2457"]
[TimeControl "180+1"]
[EndTime "10:17:18 PDT"]
[Termination "ShahMatKanal won on time"]

1. d4 {[%clk 0:03:00.9]} 1... d5 {[%clk 0:02:57.6]} 2. c4 {[%clk 0:03:00.7]}
2... e6 {[%clk 0:02:54.8]} 3. Nc3 {[%clk 0:03:00]} 3... Nf6 {[%clk 0:02:51.9]}
4. cxd5 {[%clk 0:02:59.8]} 4... exd5 {[%clk 0:02:51.6]} 5. Bg5 {[%clk
0:02:58.9]} 5... c6 {[%clk 0:02:52]} 6. e3 {[%clk 0:02:58.7]} 6... Qb6 {[%clk
0:02:51.9]} 7. Bxf6 {[%clk 0:02:30.9]} 7... Qxb2 {[%clk 0:02:47.4]} 8. Qc1
{[%clk 0:02:18.4]} 8... Qxc1+ {[%clk 0:02:12.2]} 9. Rxc1 {[%clk 0:02:17.2]} 9...
Ba3 {[%clk 0:02:13.1]} 10. Bxg7 {[%clk 0:02:00.2]} 10... Rg8 {[%clk 0:02:06.5]}
11. Nxd5 {[%clk 0:01:41.2]} 11... Rxg7 {[%clk 0:01:10.7]} 12. Rc3 {[%clk
0:01:39.4]} 12... Bd6 {[%clk 0:00:58.7]} 13. a3 {[%clk 0:00:42.7]} 13... Nd7
{[%clk 0:00:38.8]} 14. Nb4 {[%clk 0:00:35.7]} 14... Nb6 {[%clk 0:00:35.9]} 15.
Nd3 {[%clk 0:00:12]} 15... Be6 {[%clk 0:00:35]} 16. Nc5 {[%clk 0:00:08.9]} 16...
Bc8 {[%clk 0:00:33.4]} 17. Nf3 {[%clk 0:00:08.1]} 17... Nd5 {[%clk 0:00:33.6]}
18. Rc1 {[%clk 0:00:07.3]} 18... b6 {[%clk 0:00:33.4]} 19. Ne4 {[%clk
0:00:05.4]} 19... Bxa3 {[%clk 0:00:31.8]} 20. Rb1 {[%clk 0:00:04.5]} 20... Bf5
{[%clk 0:00:27.6]} 21. Bd3 {[%clk 0:00:04.2]} 21... O-O-O {[%clk 0:00:13.8]} 22.
Ke2 {[%clk 0:00:02.8]} 22... Kb7 {[%clk 0:00:05.7]} 0-1

[Event "*** Titled Tuesday Blitz"]
[Site "Chess.com"]
[Date "2020.05.26"]
[Round "2"]
[White "Korchmar_Vasiliy"]
[Black "GOGIEFF"]
[Result "0-1"]
[WhiteElo "2570"]
[BlackElo "2903"]
[TimeControl "180+1"]
[EndTime "10:17:19 PDT"]
[Termination "GOGIEFF won by resignation"]

1. d4 {[%clk 0:03:00.9]} 1... Nf6 {[%clk 0:02:57.9]} 2. c4 {[%clk 0:03:01.2]}
2... g6 {[%clk 0:02:58.4]} 3. Nc3 {[%clk 0:03:01.1]} 3... Bg7 {[%clk 0:02:58.7]}
4. e4 {[%clk 0:03:01]} 4... d6 {[%clk 0:02:59]} 5. h3 {[%clk 0:03:01.3]} 5...
O-O {[%clk 0:02:57.8]} 6. Nf3 {[%clk 0:03:01.6]} 6... e5 {[%clk 0:02:56.2]} 7.
d5 {[%clk 0:03:02]} 7... a5 {[%clk 0:02:55.9]} 8. g4 {[%clk 0:03:01.7]} 8... Na6
{[%clk 0:02:56]} 9. Be3 {[%clk 0:03:02]} 9... Nd7 {[%clk 0:02:56]} 10. a3 {[%clk
0:03:02.5]} 10... Nb6 {[%clk 0:02:51]} 11. Rg1 {[%clk 0:02:58.8]} 11... Bd7
{[%clk 0:02:43.6]} 12. h4 {[%clk 0:02:58.9]} 12... Nc5 {[%clk 0:02:39.3]} 13. b3
{[%clk 0:02:59.3]} 13... Qc8 {[%clk 0:02:26.5]} 14. Nd2 {[%clk 0:02:53.6]} 14...
a4 {[%clk 0:02:15.8]} 15. b4 {[%clk 0:02:53]} 15... Nb3 {[%clk 0:02:16]} 16.
Nxb3 {[%clk 0:02:22.8]} 16... axb3 {[%clk 0:02:16.9]} 17. Be2 {[%clk 0:02:10.6]}
17... b2 {[%clk 0:02:02.3]} 18. Ra2 {[%clk 0:02:10]} 18... Ba4 {[%clk
0:01:51.5]} 19. Nxa4 {[%clk 0:01:19.9]} 19... Nxa4 {[%clk 0:01:52.4]} 20. Qd3
{[%clk 0:01:06.2]} 20... c6 {[%clk 0:01:38.1]} 21. Kd2 {[%clk 0:00:31]} 21...
cxd5 {[%clk 0:01:36.9]} 22. Qxd5 {[%clk 0:00:24.5]} 22... Qc7 {[%clk 0:01:21.3]}
23. Rb1 {[%clk 0:00:22.5]} 23... Rfc8 {[%clk 0:01:13.7]} 24. Bd1 {[%clk
0:00:22.6]} 24... Qxc4 {[%clk 0:01:02.2]} 25. Qxc4 {[%clk 0:00:23.5]} 25... Rxc4
{[%clk 0:01:02.4]} 26. Bxa4 {[%clk 0:00:07.2]} 26... Rxa4 {[%clk 0:01:03.3]} 27.
Rbxb2 {[%clk 0:00:02.3]} 27... Rxe4 {[%clk 0:00:52.2]} 28. f3 {[%clk 0:00:02.8]}
28... Rc4 {[%clk 0:00:51.4]} 29. Rc2 {[%clk 0:00:03.3]} 29... d5 {[%clk
0:00:50]} 30. Rxc4 {[%clk 0:00:03.6]} 30... dxc4 {[%clk 0:00:50.9]} 31. b5
{[%clk 0:00:03.4]} 31... Bf8 {[%clk 0:00:49.7]} 32. Kc3 {[%clk 0:00:03.1]} 32...
f5 {[%clk 0:00:47.1]} 33. gxf5 {[%clk 0:00:03]} 33... gxf5 {[%clk 0:00:48]} 34.
h5 {[%clk 0:00:01.9]} 34... Kf7 {[%clk 0:00:47.9]} 35. h6 {[%clk 0:00:01.6]}
35... Ke6 {[%clk 0:00:47.4]} 36. Bd2 {[%clk 0:00:01.5]} 36... Bxa3 {[%clk
0:00:44.6]} 37. Ra1 {[%clk 0:00:01.4]} 37... Bb4+ {[%clk 0:00:44.2]} 0-1

[Event "*** Titled Tuesday Blitz"]
[Site "Chess.com"]
[Date "2020.05.26"]
[Round "2"]
[White "Sankalp_Gupta2003"]
[Black "vanyakuba"]
[Result "1-0"]
[WhiteElo "2706"]
[BlackElo "2471"]
[TimeControl "180+1"]
[EndTime "10:17:19 PDT"]
[Termination "Sankalp_Gupta2003 won by resignation"]

1. e4 {[%clk 0:02:59.7]} 1... d5 {[%clk 0:03:00.4]} 2. exd5 {[%clk 0:02:59.5]}
2... Qxd5 {[%clk 0:03:01.3]} 3. Nf3 {[%clk 0:02:59]} 3... Nf6 {[%clk 0:03:01.2]}
4. Be2 {[%clk 0:02:58.5]} 4... Bg4 {[%clk 0:03:01.1]} 5. O-O {[%clk 0:02:57.3]}
5... Nc6 {[%clk 0:03:01.2]} 6. c4 {[%clk 0:02:56.9]} 6... Qf5 {[%clk 0:02:56]}
7. d4 {[%clk 0:02:55.5]} 7... O-O-O {[%clk 0:02:53.9]} 8. Be3 {[%clk 0:02:52.8]}
8... e5 {[%clk 0:02:25.7]} 9. d5 {[%clk 0:02:50]} 9... Bxf3 {[%clk 0:02:25]} 10.
Bxf3 {[%clk 0:02:50.9]} 10... e4 {[%clk 0:02:25.5]} 11. Be2 {[%clk 0:02:48.6]}
11... Ne5 {[%clk 0:02:25.6]} 12. Bxa7 {[%clk 0:02:42.1]} 12... Bd6 {[%clk
0:02:13.6]} 13. Bd4 {[%clk 0:02:31.4]} 13... Rhe8 {[%clk 0:01:10.2]} 14. c5
{[%clk 0:02:01.8]} 14... Bxc5 {[%clk 0:00:36.5]} 15. Bxc5 {[%clk 0:01:58.3]}
15... Rxd5 {[%clk 0:00:36.7]} 16. Qa4 {[%clk 0:01:51.2]} 16... Rxc5 {[%clk
0:00:19.8]} 17. Qa8+ {[%clk 0:01:51]} 17... Kd7 {[%clk 0:00:20]} 18. Qxb7 {[%clk
0:01:51.7]} 18... Nd3 {[%clk 0:00:10.7]} 19. Nc3 {[%clk 0:01:44.4]} 19... Nd5
{[%clk 0:00:08]} 20. Na4 {[%clk 0:01:37.6]} 20... N5f4 {[%clk 0:00:05.7]} 21.
Nxc5+ {[%clk 0:01:34]} 21... Qxc5 {[%clk 0:00:06.6]} 22. Bxd3 {[%clk 0:01:32.9]}
22... Nxd3 {[%clk 0:00:06.5]} 23. Rad1 {[%clk 0:01:30.3]} 23... Re5 {[%clk
0:00:03.9]} 24. Qb3 {[%clk 0:01:23.6]} 24... Rd5 {[%clk 0:00:03.2]} 25. Qc3
{[%clk 0:01:18]} 25... Qd6 {[%clk 0:00:02.5]} 26. Qxg7 {[%clk 0:01:13.6]} 26...
Qe6 {[%clk 0:00:02.7]} 27. Qxh7 {[%clk 0:01:05.7]} 27... Kc8 {[%clk 0:00:01.7]}
28. Qg8+ {[%clk 0:00:53.7]} 28... Kb7 {[%clk 0:00:01.6]} 29. Qg3 {[%clk
0:00:53.9]} 29... f5 {[%clk 0:00:01.6]} 30. Qh3 {[%clk 0:00:40.9]} 30... f4
{[%clk 0:00:02.1]} 31. Qxe6 {[%clk 0:00:40.5]} 1-0